bitfinex-derivatives/quotes_SOLF0:USTF0_20260314
["timestamp","ask_amount","ask_price","bid_price","bid_amount"]
[1773496357516,3.94529123,87.049,87.013,10.341]
[1773496357715,3.94529123,87.07,87.014,3.66406387]
[1773496357919,3.94529123,87.07,87.021,3.66406387]
[1773496359524,3.94529123,87.07,87.034,10.339]
[1773496373235,3.94529123,87.07,87.03,3.66406387]
[1773496373437,3.85604488,87.069,87.03,3.66406387]
[1773496377239,3.85604488,87.069,87.033,14.374223]
[1773496378234,3.85604488,87.069,87.033,4.035223]
[1773496378636,3.85604488,87.069,87.024,10.34]
[1773496378840,3.85604488,87.059,87.023,4.035223]
[1773496384642,3.85604488,87.057,87.009,4.035223]
[1773496384848,6.97416916,87.05,87.009,4.035223]
[1773496385848,3.85604488,87.049,87.009,4.035223]
[1773496386947,3.85604488,87.046,87.009,4.035223]
[1773496387249,3.85604488,87.044,87.009,4.035223]
[1773496388548,14.19504488,87.035,86.984,4.035223]
[1773496388746,3.85604488,87.034,86.984,4.035223]
[1773496389750,3.85604488,87.034,86.988,4.035223]
[1773496390946,36.14,87.043,87.001,4.035223]
[1773496391351,36.14,87.049,87.002,4.035223]
[1773496391543,36.14,87.049,87.011,4.035223]
[1773496392157,14.19204488,87.055,87.011,4.035223]
[1773496392351,3.85604488,87.053,87.011,4.035223]
[1773496393859,3.85604488,87.063,87.013,4.035223]
[1773496394057,36.14,87.062,87.013,4.035223]
[1773496394252,36.14,87.061,87.013,4.035223]
[1773496395549,36.14,87.061,87.015,4.035223]
[1773496397558,36.14,87.061,87.017,4.035223]
[1773496398560,36.14,87.061,87.019,4.035223]
[1773496399658,36.14,87.061,87.021,4.035223]
[1773496399862,10.68317197,87.086,87.021,4.035223]
[1773496399863,36.14,87.071,87.021,4.035223]
[1773496400163,36.14,87.071,87.031,4.035223]
[1773496400662,3.85604488,87.079,87.036,4.035223]
[1773496400962,36.14,87.078,87.036,4.035223]
[1773496401657,36.14,87.078,87.043,10.338]
[1773496401862,36.14,87.078,87.043,14.02136136]
[1773496402160,36.14,87.078,87.044,3.68336136]
[1773496403361,39.98161531,87.078,87.044,3.68336136]
[1773496406264,3.84161531,87.077,87.044,3.68336136]
[1773496410870,36.14,87.076,87.047,3.68336136]
[1773496411070,3.84161531,87.087,87.047,3.68336136]
[1773496411270,36.14,87.098,87.051,3.68336136]
[1773496411577,3.84161531,87.089,87.018,3.68336136]
[1773496411763,3.84161531,87.079,87.031,3.68336136]
[1773496412463,3.11812428,87.07,87.033,3.68336136]
[1773496412763,39.98161531,87.069,87.033,3.68336136]
[1773496413069,3.84161531,87.068,87.033,3.68336136]
[1773496418674,3.84161531,87.068,86.99,62.0]
[1773496418675,3.84161531,87.082,87.045,3.68336136]
[1773496427671,3.84161531,87.082,87.048,3.68336136]
[1773496446491,3.11589804,87.09,87.048,3.68336136]
[1773496446492,10.332,87.092,87.048,3.68336136]
[1773496446694,36.14,87.087,87.048,3.68336136]
[1773496446893,9.23425538,87.086,87.048,3.68336136]
[1773496447088,39.93678681,87.087,87.048,3.68336136]
[1773496447286,9.23420159,87.086,87.048,3.68336136]
[1773496447490,39.93678681,87.087,87.048,3.68336136]
[1773496447692,9.23384156,87.086,87.048,3.68336136]
[1773496447890,39.93678681,87.087,87.048,3.68336136]
[1773496448087,3.79678681,87.087,87.05,3.96819593]
[1773496449491,3.79678681,87.097,87.05,3.96819593]
[1773496449687,3.79678681,87.106,87.055,3.96819593]
[1773496449893,3.79678681,87.106,87.061,3.96819593]
[1773496450587,3.79678681,87.106,87.067,3.96819593]
[1773496452498,3.79678681,87.106,87.071,3.96819593]
[1773496453290,3.79678681,87.106,87.073,10.334]
[1773496455391,3.79678681,87.106,87.073,14.30219593]
[1773496463606,3.79678681,87.106,87.074,3.87471951]
[1773496464007,36.14,87.113,87.074,3.87471951]
[1773496464911,36.14,87.113,87.077,3.87471951]
[1773496465405,4.06769448,87.116,87.077,3.87471951]
[1773496466608,4.06769448,87.116,87.079,3.87471951]
[1773496467104,4.06769448,87.116,87.082,3.87471951]
[1773496467304,4.06769448,87.132,87.082,3.87471951]
[1773496468613,4.06769448,87.132,87.086,3.87471951]
[1773496469513,4.06769448,87.132,87.088,3.87471951]
[1773496473916,36.14,87.131,87.088,3.87471951]
[1773496474120,4.06769448,87.13,87.088,3.87471951]
[1773496479026,4.06769448,87.13,87.09,3.87471951]
[1773496483827,4.06769448,87.13,87.089,10.332]
[1773496484034,4.06769448,87.109,87.061,3.87471951]
[1773496484232,4.06769448,87.107,87.061,3.87471951]
[1773496485636,4.06769448,87.107,87.068,3.87471951]
[1773496504154,36.14,87.108,87.07,3.79673695]
[1773496504358,3.8657239,87.117,87.07,3.79673695]
[1773496504567,36.14,87.108,87.07,3.79673695]
[1773496505260,36.14,87.108,87.071,3.79673695]
[1773496509763,3.8657239,87.107,87.071,3.79673695]
[1773496512163,3.8657239,87.107,87.077,14.13073695]
[1773496512365,3.8657239,87.107,87.078,3.79673695]
[1773496513064,3.8657239,87.119,87.081,10.333]
[1773496513266,3.8657239,87.117,87.081,10.333]
[1773496523568,3.8657239,87.117,87.081,14.18540426]
[1773496523866,3.8657239,87.117,87.072,10.334]
[1773496524067,4.05060453,87.099,87.061,3.85240426]
[1773496525666,4.05060453,87.099,87.062,10.335]
[1773496531777,4.05060453,87.099,87.062,14.18740426]
[1773496532174,4.05060453,87.099,87.063,3.85240426]
[1773496534182,46.47,87.109,87.05,3.11228572]
[1773496534183,4.05060453,87.089,87.05,3.85240426]
[1773496542584,14.38260453,87.089,87.041,3.85240426]
[1773496542883,4.05060453,87.079,87.041,3.85240426]
[1773496543391,4.05060453,87.069,87.029,3.85240426]
[1773496543687,4.05060453,87.067,87.029,3.85240426]
[1773496551895,36.14,87.068,87.029,3.85240426]
[1773496552191,36.14,87.068,86.985,36.14]
[1773496552192,36.14,87.068,87.031,3.89287326]
[1773496553594,36.14,87.068,87.038,3.89287326]
[1773496561194,40.02013049,87.068,87.038,3.89287326]
[1773496562401,36.14,87.068,87.038,3.89287326]
[1773496563499,36.14,87.068,87.04,10.338]
[1773496563699,36.14,87.068,87.041,3.89287326]
[1773496564599,36.14,87.068,87.042,14.23087326]
[1773496564798,36.14,87.068,87.043,3.89287326]
[1773496569703,36.14,87.068,87.045,3.89287326]
[1773496576016,36.14,87.068,87.048,10.337]
[1773496582519,3.88013049,87.081,87.048,10.337]
[1773496582718,3.86593944,87.076,87.048,10.337]
[1773496594530,3.86593944,87.076,87.04,10.338]
[1773496595327,3.86593944,87.076,87.031,10.339]
[1773496595623,3.86593944,87.069,87.031,10.339]
[1773496604536,3.86593944,87.069,87.023,14.14739732]
[1773496607544,3.86593944,87.069,87.024,3.80739732]
[1773496609644,3.74875691,87.067,87.024,3.80739732]
[1773496620349,3.74875691,87.067,87.025,10.34]
[1773496621548,3.74875691,87.067,87.025,14.19096081]
[1773496625646,3.74875691,87.067,87.026,3.85096081]
[1773496631056,4.02852207,87.099,87.03,3.11707408]
[1773496631355,4.02852207,87.081,87.031,3.85096081]
[1773496631556,36.14,87.08,87.031,3.85096081]
[1773496632348,36.14,87.08,87.046,3.85096081]
[1773496635956,40.16852207,87.08,87.046,3.85096081]
[1773496637754,4.02852207,87.079,87.046,3.85096081]
[1773496695804,4.02852207,87.079,86.995,20.687]
[1773496695805,3.7930294,87.089,87.049,3.98150224]
[1773496696007,45.21670584,87.088,87.049,3.98150224]
[1773496696206,9.05670584,87.087,87.049,3.98150224]
[1773496696402,9.05670584,87.086,87.049,3.98150224]
[1773496696606,36.16,87.088,87.049,3.98150224]
[1773496699003,36.01363712,87.088,87.049,3.98150224]
[1773496699197,3.7930294,87.087,87.049,3.98150224]
[1773496700105,3.7930294,87.087,87.03,3.11604083]
[1773496700106,3.7930294,87.087,87.051,3.98150224]
[1773496701109,36.16,87.086,87.051,3.98150224]
[1773496701510,36.16,87.086,87.052,10.337]
[1773496701709,36.16,87.086,87.053,3.83998658]
[1773496704505,3.89498237,87.086,87.053,3.83998658]
[1773496709112,36.16,87.088,87.053,3.83998658]
[1773496709713,36.16,87.088,87.04,3.11604083]
[1773496709714,36.16,87.088,87.055,3.83998658]
[1773496716824,3.89498237,87.098,87.055,3.83998658]
[1773496717023,3.89498237,87.096,87.055,3.83998658]
[1773496717822,3.11604083,87.09,87.055,3.83998658]
[1773496721629,3.89498237,87.089,87.055,3.83998658]
[1773496722326,3.89498237,87.089,87.054,10.336]
[1773496722327,3.89498237,87.079,87.045,3.83998658]
[1773496723626,3.89498237,87.079,87.046,10.337]
[1773496725434,3.89498237,87.079,87.046,14.17698658]
[1773496730335,3.90225454,87.069,87.036,3.68308678]
[1773496730936,3.90225454,87.08,87.038,3.68308678]
[1773496731135,10.73525428,87.11,87.038,3.68308678]
[1773496731136,3.90225454,87.089,87.038,3.68308678]
[1773496731339,3.90225454,87.089,87.041,3.89136751]
[1773496732632,3.90225454,87.089,87.053,3.89136751]
[1773496750456,3.11626287,87.1,87.055,3.89136751]
[1773496750655,39.27626287,87.1,87.055,3.89136751]
[1773496751051,3.85704671,87.099,87.055,3.89136751]
[1773496751556,3.85704671,87.099,87.057,3.89136751]
[1773496752558,3.85704671,87.099,87.058,14.22736751]
[1773496754758,3.85704671,87.099,87.065,3.89136751]
[1773496754957,3.85704671,87.109,87.065,3.89136751]
[1773496755264,3.85704671,87.107,87.065,3.89136751]
[1773496755661,34.95739388,87.15,87.018,20.682]
[1773496755662,3.85704671,87.116,87.068,3.89136751]
[1773496757562,3.85704671,87.116,87.076,3.89136751]
[1773496761763,3.78370416,87.109,87.066,3.94045268]
[1773496763665,3.78370416,87.137,87.081,3.94045268]
[1773496763864,3.78370416,87.119,87.071,3.94045268]
[1773496765060,3.11626287,87.11,87.071,3.94045268]
[1773496765262,3.78370416,87.109,87.071,3.94045268]
[1773496765464,3.78370416,87.119,87.073,3.94045268]
[1773496765864,3.78370416,87.109,87.073,3.94045268]
[1773496784080,3.78370416,87.109,87.074,3.94045268]
[1773496788783,3.78370416,87.109,87.075,10.334]
[1773496796484,3.78370416,87.109,87.042,36.14]
[1773496796485,3.78370416,87.109,87.063,4.02918441]
[1773496796684,21.44209821,87.18,87.04,3.1134989]
[1773496796685,3.9874945,87.099,87.041,4.02918441]
[1773496796886,36.14,87.111,87.041,4.02918441]
[1773496796887,3.9874945,87.089,87.041,4.02918441]
[1773496797285,3.9874945,87.089,87.044,4.02918441]
[1773496797688,3.9874945,87.079,87.044,4.02918441]
[1773496800893,3.9874945,87.099,87.044,4.02918441]
[1773496801191,3.9874945,87.089,87.044,4.02918441]
[1773496801789,3.9874945,87.099,87.051,4.02918441]
[1773496802089,36.14,87.104,87.061,4.02918441]
[1773496802287,3.9874945,87.109,87.071,4.02918441]
[1773496802488,3.9874945,87.129,87.071,4.02918441]
[1773496803284,3.9874945,87.119,87.073,9.76318441]
[1773496803789,36.14,87.139,87.04,3.1134989]
[1773496803790,3.9874945,87.109,87.04,3.1134989]
[1773496804693,3.9874945,87.109,87.053,10.336]
[1773496805291,3.9874945,87.109,87.054,3.72566199]
[1773496806088,3.9874945,87.109,87.056,3.72566199]
[1773496806283,3.9874945,87.109,87.06,3.1134989]
[1773496806489,3.9874945,87.109,87.061,3.74534973]
[1773496807688,3.9874945,87.109,87.066,3.74540034]
[1773496812686,3.9874945,87.108,87.07,6.8713899]
[1773496812885,3.9874945,87.108,87.071,3.757891]
[1773496814487,3.9874945,87.108,87.071,14.091891]
[1773496814688,3.9874945,87.108,87.072,3.74956078]
[1773496817700,3.9874945,87.108,87.062,14.07412303]
[1773496817998,3.9874945,87.108,86.956,362.936]
[1773496817999,3.9874945,87.089,87.037,3.73912303]
[1773496818199,3.9874945,87.099,87.041,3.73912303]
[1773496819400,3.9874945,87.099,87.051,3.71889482]
[1773496819602,3.9874945,87.099,87.059,3.64358351]
[1773496821803,3.9874945,87.099,87.064,3.61186347]
[1773496822004,3.75141621,87.115,87.064,3.61186347]
[1773496823803,3.1134989,87.11,87.064,3.61186347]
[1773496824003,3.75141621,87.109,87.064,3.61186347]
[1773496825808,3.75141621,87.109,87.068,3.59809311]
[1773496827602,3.75141621,87.109,87.072,10.334]
[1773496829806,3.75141621,87.109,87.072,13.94771234]
[1773496830004,3.75141621,87.109,87.073,3.61371234]
[1773496835614,10.33,87.106,87.073,3.61371234]
[1773496835910,3.75141621,87.109,87.073,3.61371234]
[1773496836714,3.75141621,87.099,87.06,3.58777422]
[1773496836910,3.75141621,87.089,87.048,3.58777422]
[1773496843618,3.75141621,87.089,87.053,10.336]
[1773496844016,3.75141621,87.089,87.048,3.58777422]
[1773496860820,3.11524127,87.08,87.038,3.50390325]
[1773496861125,3.85842814,87.079,87.038,3.50390325]
[1773496871533,3.85842814,87.069,87.028,3.5556821]
[1773496874842,3.85842814,87.049,87.001,3.57529096]
[1773496875340,3.85842814,87.049,87.01,3.58932679]
[1773496876437,3.85842814,87.049,86.973,36.16]
[1773496876438,3.85842814,87.059,87.02,3.11524127]
[1773496876739,3.85842814,87.076,87.021,3.59399518]
[1773496878739,3.85842814,87.076,87.022,3.61114443]
[1773496878936,3.85842814,87.069,87.022,3.61114443]
[1773496884440,3.11524127,87.06,87.022,3.61114443]
[1773496884740,3.69581232,87.059,87.015,10.341]
[1773496885132,3.69581232,87.059,87.015,14.03129121]
[1773496886041,3.69581232,87.059,87.016,3.69020607]
[1773496890441,3.69581232,87.059,86.996,36.16]
[1773496890442,3.69581232,87.079,87.021,3.69938946]
[1773496891548,3.69581232,87.079,87.036,3.69954135]
[1773496902850,3.69581232,87.077,87.036,3.69954135]
[1773496903254,3.69581232,87.069,87.036,3.69954135]
[1773496911759,3.84496277,87.059,87.021,3.69497452]
[1773496919655,3.11671297,87.05,87.012,3.67059038]
[1773496919960,3.84496277,87.049,87.012,3.67059038]
[1773496921059,3.84496277,87.049,87.001,3.67444659]
[1773496921258,3.84496277,87.047,87.001,3.67444659]
[1773496921660,3.84496277,87.047,87.004,3.67458444]
[1773496922263,3.84496277,87.068,87.011,3.68819545]
[1773496922763,3.84496277,87.068,87.021,3.68819545]
[1773496923664,3.84496277,87.068,87.025,3.68878969]
[1773496925665,3.84496277,87.068,87.027,3.69437476]
[1773496927570,3.84496277,87.068,87.029,3.61560442]
[1773496928269,3.11671297,87.07,87.029,3.61560442]
[1773496928569,3.84496277,87.078,87.032,3.55742331]
[1773496928763,3.84496277,87.099,87.032,3.55742331]
[1773496929570,3.84496277,87.098,87.045,3.6200968]
[1773496930671,6.96167574,87.09,87.045,3.6200968]
[1773496930969,3.84496277,87.089,87.045,3.6200968]
[1773496940776,3.84496277,87.089,87.051,3.65250211]
[1773496954597,3.84496277,87.089,87.019,36.16]
[1773496954598,10.331,87.098,87.053,3.67910369]
[1773496954796,3.95316136,87.105,87.053,3.67910369]
[1773496954997,3.95316136,87.105,87.024,36.16]
[1773496954998,3.95316136,87.105,87.061,3.67910369]
[1773496956596,3.95316136,87.105,87.063,3.69303274]
[1773496960902,3.95316136,87.119,87.071,3.69921523]
[1773496962600,3.95316136,87.119,87.072,3.69964388]
[1773496965205,3.95316136,87.119,87.076,3.70014449]
[1773496965401,3.95316136,87.13,87.081,3.70014449]
[1773496965604,3.95316136,87.13,87.091,3.70014449]
[1773496974506,4.05412581,87.127,87.081,3.68448804]
[1773496974708,4.05412581,87.099,87.061,3.68448804]
[1773496985413,4.05412581,87.099,87.057,10.336]
[1773496986014,4.05412581,87.099,87.052,3.66581589]
[1773496987012,4.05412581,87.093,87.052,3.66581589]
[1773496988014,4.05412581,87.089,87.052,3.66581589]
[1773497016424,10.69743245,87.126,87.026,36.14]
[1773497016425,3.78175785,87.109,87.06,3.11228737]
[1773497016630,3.78175785,87.109,87.061,3.69048544]
[1773497017522,3.78175785,87.109,87.076,3.5904153]
[1773497017728,3.78175785,87.127,87.076,3.5904153]
[1773497017927,3.78175785,87.127,87.081,3.5904153]
[1773497018121,10.69743245,87.159,87.034,34.45]
[1773497018122,3.78175785,87.151,87.101,3.5904153]
[1773497018729,3.78175785,87.151,87.103,3.59564581]
[1773497020033,3.78175785,87.151,87.107,3.59588336]
[1773497023929,3.78175785,87.151,87.109,3.59303182]
[1773497029938,3.78175785,87.151,87.1,3.11228737]
[1773497029939,3.78175785,87.151,87.111,3.59460465]
[1773497032642,3.78175785,87.151,87.113,3.61492729]
[1773497033342,3.92698425,87.163,87.116,3.61589677]
[1773497033644,3.92698425,87.163,87.121,3.61589677]
[1773497040349,3.92698425,87.163,87.123,3.61788161]
[1773497042850,3.92698425,87.163,87.126,3.59693236]
[1773497043648,3.92698425,87.163,87.128,3.60049818]
[1773497046240,3.92698425,87.163,87.13,3.60085783]
[1773497046442,3.92698425,87.159,87.111,3.60420422]
[1773497047646,3.92698425,87.159,87.112,10.329]
[1773497051353,3.92698425,87.159,87.112,13.95441645]
[1773497052449,3.92698425,87.159,87.1,3.11031735]
[1773497052450,3.92698425,87.159,87.119,10.329]
[1773497053651,3.92698425,87.159,87.121,13.94347587]
[1773497054050,3.92698425,87.159,87.122,3.61547587]
[1773497054353,3.92698425,87.159,87.125,3.62455886]
[1773497055653,3.92698425,87.159,87.114,10.329]
[1773497056554,3.92698425,87.159,87.114,13.95538329]
[1773497057455,3.92698425,87.159,87.115,3.62662109]
[1773497058248,3.92698425,87.159,87.12,13.96271337]
[1773497058454,3.92698425,87.159,87.121,3.63471337]
[1773497059546,3.92698425,87.159,87.124,3.66843265]
[1773497065958,3.79850676,87.169,87.127,3.66635978]
[1773497066653,3.79850676,87.169,87.137,10.326]
[1773497066959,3.79850676,87.169,87.137,13.99216173]
[1773497067156,3.79850676,87.169,87.138,3.66616173]
[1773497076367,3.79850676,87.185,87.143,3.7273901]
[1773497077755,3.79850676,87.185,87.145,10.325]
[1773497081061,3.79850676,87.185,87.146,3.74117111]
[1773497085070,3.79850676,87.196,87.151,3.74092902]
[1773497086463,3.79850676,87.196,87.161,3.71477365]
[1773497086666,3.79850676,87.206,87.161,3.71477365]
[1773497087668,3.79850676,87.206,87.163,3.75537129]
[1773497088964,36.12,87.228,87.153,3.74523715]
[1773497088965,3.11031735,87.19,87.153,3.74523715]
[1773497089172,3.79850676,87.189,87.141,3.74523715]
[1773497090267,3.79850676,87.189,87.147,3.68497409]
[1773497090568,3.76085346,87.201,87.151,3.68497409]
[1773497090768,3.76085346,87.189,87.139,3.68497409]
[1773497091276,3.76085346,87.189,87.145,3.73645262]
[1773497093666,3.76085346,87.189,87.147,3.73645262]
[1773497094774,3.76085346,87.189,87.149,3.73645262]
[1773497100471,3.76085346,87.189,87.14,3.10818932]
[1773497100472,3.76085346,87.189,87.14,3.73645262]
[1773497100772,3.83813172,87.179,87.121,3.73645262]
[1773497100968,3.83813172,87.179,87.086,28.58507595]
[1773497100969,3.83813172,87.169,87.123,3.73645262]
[1773497101371,3.83813172,87.159,87.112,3.73645262]
[1773497101673,3.83813172,87.139,87.098,3.73645262]
[1773497105971,3.83813172,87.139,87.1,3.73645262]
[1773497109271,3.83813172,87.139,87.102,3.73645262]
[1773497109577,6.94632104,87.15,87.102,3.73645262]
[1773497109776,3.83813172,87.149,87.102,3.73645262]
[1773497110277,3.83813172,87.16,87.111,3.73645262]
[1773497111573,3.83813172,87.16,87.12,3.73645262]
[1773497113271,3.83813172,87.169,87.123,3.73645262]
[1773497114577,3.83813172,87.169,87.124,10.328]
[1773497117680,3.83813172,87.169,87.124,14.06445262]
[1773497120883,6.94632104,87.16,87.124,14.06445262]
[1773497121583,3.83813172,87.16,87.125,3.78574556]
[1773497129292,6.94632104,87.16,87.125,3.78574556]
[1773497129494,3.90897042,87.159,87.125,3.78574556]
[1773497145302,3.90897042,87.157,87.108,3.79469063]
[1773497145500,3.90897042,87.139,87.098,3.79469063]
[1773497145699,3.90897042,87.129,87.098,3.79469063]
[1773497147402,3.90897042,87.129,87.088,3.79293992]
[1773497147607,3.10818932,87.1,87.061,3.79293992]
[1773497147797,7.01715974,87.1,87.061,3.79293992]
[1773497148606,3.10818932,87.13,87.071,3.79235256]
[1773497148810,7.01715974,87.13,87.071,3.79235256]
[1773497149298,3.90897042,87.13,87.071,3.79235256]
[1773497149609,3.90897042,87.13,87.086,3.78210063]
[1773497154912,3.90897042,87.13,87.054,36.14]
[1773497154913,3.90897042,87.13,87.101,3.81130979]
[1773497155107,3.7446636,87.15,87.111,3.81130979]
[1773497156311,3.7446636,87.15,87.113,14.12731247]
[1773497157806,3.7446636,87.15,87.114,3.68830376]
[1773497158014,3.7446636,87.168,87.116,3.68830376]
[1773497159612,3.7446636,87.168,87.12,3.6549948]
[1773497160215,3.7446636,87.168,87.123,3.6549948]
[1773497161017,3.7446636,87.168,87.111,3.64053384]
[1773497161221,3.7446636,87.149,87.099,3.64053384]
[1773497161815,3.7446636,87.139,87.1,10.331]
[1773497165228,3.7446636,87.139,87.101,3.65601257]
[1773497173124,3.7446636,87.169,87.111,3.6485792]
[1773497174621,3.7446636,87.164,87.115,3.65339304]
[1773497175627,3.7446636,87.164,87.117,3.53931105]
[1773497177226,3.7446636,87.164,87.119,3.54104631]
[1773497178528,3.7446636,87.164,87.123,3.54747422]
[1773497179527,3.7446636,87.164,87.125,3.52920417]
[1773497179728,3.7446636,87.185,87.131,3.52920417]
[1773497180523,3.7446636,87.185,87.142,10.326]
[1773497180926,3.7446636,87.185,87.143,3.52938262]
[1773497182925,3.75725457,87.169,87.133,3.53464218]
[1773497183129,3.75725457,87.169,87.11,3.11003562]
[1773497183130,3.75725457,87.169,87.123,3.53464218]
[1773497183332,3.75725457,87.169,87.124,10.328]
[1773497183630,3.75725457,87.169,87.124,13.86829822]
[1773497184421,3.75725457,87.169,87.128,3.52915561]
[1773497184621,36.14,87.211,87.128,3.52915561]
[1773497184622,3.75725457,87.179,87.128,3.52915561]
[1773497185029,3.75725457,87.179,87.13,3.11003562]
[1773497185227,3.75725457,87.179,87.131,3.52915561]
[1773497185629,3.75725457,87.179,87.139,3.52591438]
[1773497186024,3.75725457,87.194,87.14,3.11003562]
[1773497186231,3.75725457,87.194,87.141,3.52591438]
[1773497187123,3.75725457,87.194,87.151,3.52953022]
[1773497187632,216.10949603,87.257,87.165,3.51688958]
[1773497187633,3.75725457,87.209,87.165,3.51688958]
[1773497188632,3.75725457,87.209,87.168,3.54378357]
[1773497193430,3.75725457,87.209,87.159,3.59542477]
[1773497194734,3.75725457,87.199,87.159,3.59542477]
[1773497196542,3.75725457,87.207,87.162,3.57749713]
[1773497196743,3.75725457,87.199,87.162,3.57749713]
[1773497202052,3.75725457,87.199,87.164,3.57169147]
[1773497202252,3.75725457,87.21,87.164,3.57169147]
[1773497204753,36.12,87.229,87.131,36.12]
[1773497204754,3.75725457,87.189,87.152,3.57078896]
[1773497211465,3.86670702,87.2,87.154,3.56692306]
[1773497212464,3.86670702,87.2,87.156,3.57083272]
[1773497213662,3.86670702,87.2,87.15,3.11003562]
[1773497213663,3.86670702,87.2,87.158,3.57100591]
[1773497215966,3.86670702,87.21,87.162,3.57525036]
[1773497217569,3.86670702,87.209,87.165,10.323]
[1773497217765,3.86670702,87.209,87.131,36.12]
[1773497217766,3.86670702,87.199,87.141,3.57921054]
[1773497218068,3.86670702,87.189,87.141,3.57921054]
[1773497219567,3.86670702,87.189,87.147,10.325]
[1773497221473,3.86670702,87.179,87.141,3.57921054]
[1773497221973,3.86670702,87.179,87.144,3.57103871]
[1773497224972,3.86670702,87.192,87.146,3.6166837]
[1773497226575,3.86670702,87.192,87.149,3.61949621]
[1773497230875,3.86670702,87.203,87.161,3.62587347]
[1773497231176,3.10684943,87.2,87.151,3.62587347]
[1773497231380,3.86670702,87.189,87.151,3.62587347]
[1773497234084,3.86670702,87.189,87.142,13.94818557]
[1773497238590,3.86670702,87.189,87.145,3.61637427]
[1773497249196,3.86780359,87.179,87.136,10.327]
[1773497249401,3.86780359,87.179,87.134,3.56801217]
[1773497251504,3.86780359,87.159,87.117,10.329]
[1773497254004,3.86780359,87.159,87.117,13.87022505]
[1773497254708,3.86780359,87.159,87.125,3.54625677]
[1773497256501,3.86780359,87.171,87.127,3.54449007]
[1773497257607,3.86780359,87.171,87.131,3.54854702]
[1773497259008,3.10684943,87.17,87.131,3.54854702]
[1773497259210,3.86780359,87.169,87.131,3.54854702]
[1773497261308,3.86780359,87.159,87.121,10.328]
[1773497261515,3.86780359,87.149,87.106,3.55803947]
[1773497262616,3.86780359,87.149,87.109,10.33]
[1773497263211,3.86780359,87.139,87.1,10.331]
[1773497263717,3.86780359,87.139,87.101,3.55308002]
[1773497267114,14.19380359,87.138,87.101,3.55308002]
[1773497267419,3.86780359,87.138,87.101,3.55308002]
[1773497281522,3.11161247,87.15,87.103,3.69147192]
[1773497281523,3.71233897,87.149,87.103,3.69147192]
[1773497282623,3.71233897,87.149,87.109,3.69147192]
[1773497283522,3.71233897,87.149,87.11,10.33]
[1773497283721,3.71233897,87.149,87.111,3.69147192]
[1773497287122,3.71233897,87.149,87.102,10.331]
[1773497287322,3.71233897,87.139,87.102,10.331]
[1773497290429,3.71233897,87.139,87.1,3.69147192]
[1773497295528,3.71233897,87.136,87.1,3.69147192]
[1773497295734,3.71233897,87.136,87.09,3.69147192]
[1773497295928,3.11161247,87.13,87.09,3.69147192]
[1773497296133,3.71233897,87.129,87.09,3.69147192]
[1773497300336,10.325,87.147,87.092,3.68963577]
[1773497300542,3.71233897,87.139,87.092,3.68963577]
[1773497301643,3.71233897,87.139,87.095,3.69471211]
[1773497302035,3.71233897,87.139,87.097,3.69471211]
[1773497303536,3.71233897,87.139,87.098,10.331]
[1773497303732,3.71233897,87.139,87.099,3.71133406]
[1773497309448,3.91605808,87.138,87.099,3.71133406]
[1773497318348,3.91605808,87.138,87.09,10.332]
[1773497318552,3.91605808,87.129,87.09,14.04333406]
[1773497319057,3.91605808,87.129,87.091,3.71133406]
[1773497319959,3.91605808,87.129,87.08,14.04433406]
[1773497320357,3.91605808,87.127,87.08,14.04433406]
[1773497320861,3.91605808,87.127,87.081,3.71133406]
[1773497321655,3.91605808,87.118,87.078,3.71133406]
[1773497322561,3.11161247,87.12,87.078,3.71133406]
[1773497322562,3.91605808,87.115,87.078,3.71133406]
[1773497331362,3.77356616,87.107,87.053,3.81200344]
[1773497332564,3.77356616,87.107,87.057,3.81154759]
[1773497333563,3.77356616,87.107,87.062,3.78195362]
[1773497334360,3.77356616,87.107,87.064,3.78195362]
[1773497340773,3.77356616,87.107,87.067,3.75468357]
[1773497341572,3.77356616,87.107,87.071,3.75070329]
[1773497343677,3.77356616,87.099,87.043,3.75194569]
[1773497344674,3.77356616,87.099,87.053,3.75301283]
[1773497345767,3.77356616,87.099,87.056,3.74562989]
[1773497346582,3.77356616,87.099,87.06,3.74595982]
[1773497349879,3.77356616,87.099,87.051,10.337]
[1773497350182,3.77356616,87.089,87.051,10.337]
[1773497352386,3.77356616,87.089,87.049,3.7531286]
[1773497355092,3.77356616,87.089,87.043,10.338]
[1773497355491,3.77356616,87.089,87.045,10.337]
[1773497358597,3.77356616,87.089,87.046,3.63561033]
[1773497359401,3.77356616,87.089,87.049,3.68237043]
[1773497359602,3.77356616,87.099,87.049,3.68237043]
[1773497360501,3.77356616,87.099,87.05,10.337]
[1773497360696,3.77356616,87.099,87.051,3.71594025]
[1773497365504,3.77356616,87.099,87.04,3.11410825]